fUST/lending_fUST_20250227
["ID","MTS","AMOUNT","RATE_DAILY","PERIOD"]
[354714093,1740639049073,-521.54192534,0.00047945,120]
[354714094,1740639049083,-500.0,0.00047945,120]
[354714095,1740639049092,-752.26,0.00047945,120]
[354714096,1740639049102,-500.0,0.00047945,120]
[354714097,1740639049111,-552.99,0.00047945,120]
[354714098,1740639049120,-500.0,0.00047945,120]
[354714099,1740639049130,-862.62,0.00047945,120]
[354714100,1740639049139,-500.0,0.00047945,120]
[354714101,1740639049149,-500.0,0.00047945,120]
[354714102,1740639049158,-500.0,0.00047945,120]
[354714103,1740639049168,-500.0,0.00047945,120]
[354714104,1740639049178,-500.0,0.00047945,120]
[354714105,1740639049187,-500.0,0.00047945,120]
[354714106,1740639049196,-543.02,0.00047945,120]
[354714107,1740639049206,-500.0,0.00047945,120]
[354714108,1740639049215,-500.0,0.00047945,120]
[354714109,1740639049225,-500.0,0.00047945,120]
[354714110,1740639049234,-946.85,0.00047945,120]
[354714111,1740639049244,-392.9173072,0.00047945,120]
[354714112,1740639049253,-500.0,0.00047945,120]
[354714113,1740639049263,-500.0,0.00047945,120]
[354714114,1740639049272,-2794.68,0.00047945,120]
[354714115,1740639049281,-10146.57,0.00047945,120]
[354714116,1740639049291,-500.0,0.00047945,120]
[354714117,1740639049300,-1299.66,0.00047945,120]
[354714118,1740639049310,-500.0,0.00047945,120]
[354714119,1740639049319,-500.0,0.00047945,120]
[354714120,1740639049329,-718.33,0.00047945,120]
[354714121,1740639049339,-500.0,0.00047945,120]
[354714122,1740639049350,-500.0,0.00047945,120]
[354714123,1740639049363,-1556.83,0.00047945,120]
[354714124,1740639049372,-4439.09,0.00047945,120]
[354714125,1740639049382,-6341.00010957,0.00047945,7]
[354714127,1740639439578,-150.0,0.00045571,2]
[354714131,1740639605496,5018.7305,0.0003,31]
[354714132,1740639853917,-150.0,0.00025204,2]
[354714337,1740640238739,-1903.0,0.00025204,2]
[354714339,1740640238749,-2838.65570742,0.000279,2]
[354714341,1740640238758,-400.0,0.00032899,2]
[354714343,1740640238768,-2838.65570742,0.000329,2]
[354714344,1740640238780,-560.0,0.00035352,2]
[354714346,1740640238790,-2838.65570742,0.000379,2]
[354714348,1740640238799,-201.59847828,0.000379,8]
[354714349,1740640238808,-201.59847828,0.00040567,8]
[354714350,1740640238818,-535.2247362,0.00041068,2]
[354714351,1740640238827,-5000.0,0.00043,31]
[354714352,1740640238836,-201.59847828,0.00043233,9]
[354714353,1740640238846,-288.61014859,0.00045379,2]
[354714354,1740640238855,-201.59847828,0.000459,10]
[354714355,1740640238865,-2580.36922395,0.00046475,28]
[354714356,1740640238874,-260.38619507,0.00046475,2]
[354714357,1740640238883,-1000.0,0.00046574,2]
[354714358,1740640238893,-14832.69,0.00046574,120]
[354714359,1740640238902,-500.0,0.00046575,120]
[354714360,1740640238911,-388.60722028,0.00046575,120]
[354714361,1740640238920,-500.0,0.00046575,120]
[354714362,1740640238930,-447.48416976,0.00046575,120]
[354714363,1740640238941,-521.54192534,0.00046575,120]
[354714364,1740640238950,-500.0,0.00046575,120]
[354714365,1740640238960,-500.0,0.00046575,120]
[354714366,1740640238970,-820.63,0.00046575,120]
[354714367,1740640238979,-500.0,0.00046575,120]
[354714368,1740640238988,-500.0,0.00046575,120]
[354714369,1740640238997,-500.0,0.00046575,120]
[354714370,1740640239006,-500.0,0.00046575,120]
[354714371,1740640239015,-605.08,0.00046575,120]
[354714372,1740640239025,-500.0,0.00046575,120]
[354714373,1740640239034,-611.0,0.00046575,120]
[354714374,1740640239043,-500.0,0.00046575,120]
[354714375,1740640239052,-500.0,0.00046575,120]
[354714376,1740640239062,-392.9173072,0.00046575,120]
[354714377,1740640239071,-500.0,0.00046575,120]
[354714378,1740640239080,-500.0,0.00046575,120]
[354714379,1740640239089,-616.63,0.00046575,120]
[354714380,1740640239098,-500.0,0.00046575,120]
[354714381,1740640239108,-500.0,0.00046575,120]
[354714382,1740640239118,-500.0,0.00046575,120]
[354714383,1740640239127,-628.79,0.00046575,120]
[354714384,1740640239136,-540.17,0.00046575,120]
[354714385,1740640239146,-500.0,0.00046575,120]
[354714386,1740640239155,-500.0,0.00046575,120]
[354714387,1740640239164,-500.0,0.00046575,120]
[354714388,1740640239173,-500.0,0.00046575,120]
[354714389,1740640239183,-500.0,0.00046575,120]
[354714390,1740640239192,-500.0,0.00046575,120]
[354714391,1740640239203,-223.13555845,0.00046575,120]
[354714392,1740640239213,-540.99,0.00046575,120]
[354714393,1740640239222,-500.0,0.00046575,120]
[354714394,1740640239232,-586.79,0.00046575,3]
[354714395,1740640239242,-500.0,0.00046575,120]
[354714396,1740640239251,-500.0,0.00046575,120]
[354714397,1740640239260,-626.89,0.00046575,120]
[354714398,1740640239270,-770.28,0.00046575,120]
[354714399,1740640239279,-500.0,0.00046575,120]
[354714400,1740640239288,-500.0,0.00046575,120]
[354714401,1740640239298,-500.0,0.00046575,120]
[354714402,1740640239308,-500.0,0.00046575,120]
[354714403,1740640239317,-500.0,0.00046575,120]
[354714404,1740640239327,-500.0,0.00046575,120]
[354714405,1740640239336,-500.0,0.00046575,120]
[354714406,1740640239346,-500.0,0.00046575,120]
[354714407,1740640239356,-217.94468811,0.00046575,120]
[354714408,1740640239366,-500.0,0.00046575,120]
[354714409,1740640239375,-500.0,0.00046575,120]
[354714410,1740640239384,-500.0,0.00046575,120]
[354714411,1740640239393,-718.85,0.00046575,120]
[354714412,1740640239402,-500.0,0.00046575,120]
[354714413,1740640239412,-500.0,0.00046575,120]
[354714414,1740640239422,-500.0,0.00046575,120]
[354714415,1740640239432,-500.0,0.00046575,120]
[354714416,1740640239441,-500.0,0.00046575,120]
[354714417,1740640239451,-500.0,0.00046575,120]
[354714418,1740640239463,-500.0,0.00046575,120]
[354714419,1740640239472,-500.0,0.00046575,120]
[354714420,1740640239490,-500.0,0.00046575,120]
[354714421,1740640239503,-500.0,0.00046575,120]
[354714422,1740640239514,-500.0,0.00046575,120]
[354714423,1740640239524,-500.0,0.00046575,120]
[354714424,1740640239534,-500.0,0.00046575,120]
[354714425,1740640239545,-500.0,0.00046575,120]
[354714426,1740640239555,-500.0,0.00046575,120]
[354714427,1740640239565,-1255.94,0.00046575,120]
[354714428,1740640239576,-686.21,0.00046575,120]
[354714429,1740640239586,-500.0,0.00046575,120]
[354714430,1740640239597,-1362.22,0.00046575,120]
[354714431,1740640239608,-696.39,0.00046575,120]
[354714432,1740640239618,-500.0,0.00046575,120]
[354714433,1740640239627,-500.0,0.00046575,120]
[354714434,1740640239637,-2448.2,0.00046575,120]
[354714435,1740640239648,-8878.25,0.00046575,120]
[354714436,1740640239658,-4110.26,0.00046575,120]
[354714437,1740640239667,-500.0,0.00046575,120]
[354714438,1740640239677,-500.0,0.00046575,120]
[354714439,1740640239686,-500.0,0.00046575,120]
[354714440,1740640239696,-500.0,0.00046575,120]
[354714441,1740640239706,-628.54,0.00046575,120]
[354714442,1740640239715,-41161.85,0.00046575,7]
[354714443,1740640239726,-1307.96,0.00046575,120]
[354714444,1740640239736,-500.0,0.00046575,120]
[354714445,1740640239747,-839.87,0.00046575,120]
[354714446,1740640239757,-500.0,0.00046575,120]
[354714447,1740640239767,-759.81,0.00046575,120]
[354714448,1740640239781,-500.0,0.00046575,30]
[354714449,1740640239791,-1886.25,0.00046575,120]
[354714450,1740640239800,-500.0,0.00046575,120]
[354714451,1740640239809,-500.0,0.00046575,120]
[354714452,1740640239819,-500.0,0.00046575,120]
[354714453,1740640239830,-1063.4,0.00046575,120]
[354714454,1740640239840,-500.0,0.00046575,120]
[354714455,1740640239850,-500.0,0.00046575,120]
[354714456,1740640239859,-500.0,0.00046575,120]
[354714457,1740640239869,-762.5,0.00046575,120]
[354714458,1740640239879,-500.0,0.00046575,120]
[354714459,1740640239888,-500.0,0.00046575,120]
[354714460,1740640239899,-500.0,0.00046575,120]
[354714461,1740640239908,-1804.4,0.00046575,120]
[354714462,1740640239918,-500.0,0.00046575,120]
[354714463,1740640239927,-578.87,0.00046575,120]
[354714464,1740640239936,-500.0,0.00046575,120]
[354714465,1740640239946,-500.0,0.00046575,120]
[354714466,1740640239955,-571.07,0.00046575,120]
[354714467,1740640239964,-500.0,0.00046575,120]
[354714468,1740640239974,-947.7,0.00046575,120]
[354714469,1740640239983,-500.0,0.00046575,120]
[354714470,1740640239993,-500.0,0.00046575,120]
[354714471,1740640240002,-500.0,0.00046575,120]
[354714472,1740640240012,-500.0,0.00046575,120]
[354714473,1740640240023,-500.0,0.00046575,120]
[354714474,1740640240033,-500.0,0.00046575,120]
[354714475,1740640240043,-500.0,0.00046575,120]
[354714476,1740640240052,-500.0,0.00046575,120]
[354714477,1740640240062,-500.0,0.00046575,120]
[354714478,1740640240071,-500.0,0.00046575,120]
[354714479,1740640240080,-500.0,0.00046575,120]
[354714480,1740640240091,-500.0,0.00046575,120]
[354714481,1740640240101,-948.53,0.00046575,120]
[354714483,1740640240111,-500.0,0.00046575,120]
[354714485,1740640240120,-500.0,0.00046575,120]
[354714486,1740640240130,-1010.67,0.00046575,120]
[354714487,1740640240140,-1119.72,0.00046575,120]
[354714488,1740640240152,-7615.9,0.00046575,6]
[354714489,1740640240161,-500.0,0.00046575,120]
[354714490,1740640240171,-2671.21,0.00046575,120]
[354714491,1740640240181,-543.62,0.00046575,120]
[354714492,1740640240191,-522.81,0.00046575,120]
[354714493,1740640240200,-850.38,0.00046575,120]
[354714494,1740640240210,-724.63,0.00046575,120]
[354714495,1740640240219,-500.0,0.00046575,120]
[354714496,1740640240231,-500.0,0.00046575,120]
[354714497,1740640240242,-500.0,0.00046575,120]
[354714498,1740640240252,-500.0,0.00046575,120]
[354714499,1740640240263,-1131.59,0.00046575,120]
[354714500,1740640240272,-1032.9,0.00046575,120]
[354714501,1740640240282,-531.24,0.00046575,120]
[354714502,1740640240292,-500.0,0.00046575,120]
[354714503,1740640240302,-597.09,0.00046575,120]
[354714504,1740640240311,-500.0,0.00046575,120]
[354714505,1740640240321,-500.0,0.00046575,120]
[354714506,1740640240331,-500.0,0.00046575,120]
[354714507,1740640240340,-500.0,0.00046575,120]
[354714508,1740640240349,-10926.74,0.00046575,120]
[354714509,1740640240359,-500.0,0.00046575,120]
[354714510,1740640240368,-230.09050765,0.00046575,120]
[354714511,1740640240377,-3093.71,0.00046575,120]
[354714512,1740640240387,-1968.62,0.00046575,120]
[354714513,1740640240399,-1141.19,0.00046575,120]
[354714514,1740640240408,-500.0,0.00046575,2]
[354714515,1740640240418,-500.0,0.00046575,120]
[354714516,1740640240428,-4647.82,0.00046575,120]
[354714517,1740640240438,-500.0,0.00046575,120]
[354714518,1740640240448,-500.0,0.00046575,120]
[354714519,1740640240458,-3257.35,0.00046575,120]
[354714520,1740640240467,-500.0,0.00046575,120]
[354714521,1740640240476,-500.0,0.00046575,120]
[354714522,1740640240487,-500.0,0.00046575,120]
[354714523,1740640240497,-867.95,0.00046575,120]
[354714524,1740640240507,-500.0,0.00046849,120]
[354714525,1740640240517,-500.0,0.00046849,120]
[354714526,1740640240526,-500.0,0.00046849,120]
[354714527,1740640240536,-500.0,0.00046849,120]
[354714528,1740640240547,-820.63,0.00046849,120]
[354714529,1740640240557,-500.0,0.00046849,120]
[354714530,1740640240567,-500.0,0.00046849,120]
[354714531,1740640240576,-490.60318423,0.00046849,120]
[354714532,1740640240587,-500.0,0.00046849,120]
[354714533,1740640240596,-605.08,0.00046849,120]
[354714534,1740640240605,-500.0,0.00046849,120]
[354714535,1740640240615,-611.0,0.00046849,120]
[354714536,1740640240627,-500.0,0.00046849,120]
[354714537,1740640240636,-500.0,0.00046849,120]
[354714539,1740640240647,-500.0,0.00046849,120]
[354714541,1740640240656,-616.63,0.00046849,120]
[354714543,1740640240665,-500.0,0.00046849,120]
[354714544,1740640240674,-500.0,0.00046849,120]
[354714545,1740640240684,-500.0,0.00046849,120]
[354714546,1740640240694,-628.79,0.00046849,120]
[354714547,1740640240704,-540.17,0.00046849,120]
[354714548,1740640240714,-500.0,0.00046849,120]
[354714549,1740640240724,-500.0,0.00046849,120]
[354714550,1740640240733,-500.0,0.00046849,120]
[354714551,1740640240742,-500.0,0.00046849,120]
[354714552,1740640240752,-500.0,0.00046849,120]
[354714553,1740640240761,-500.0,0.00046849,120]
[354714554,1740640240772,-540.99,0.00046849,120]
[354714555,1740640240786,-500.0,0.00046849,120]
[354714556,1740640240796,-586.79,0.00046849,3]
[354714557,1740640240805,-500.0,0.00046849,120]
[354714558,1740640240815,-500.0,0.00046849,120]
[354714559,1740640240825,-626.89,0.00046849,120]
[354714560,1740640240836,-770.28,0.00046849,120]
[354714562,1740640240846,-500.0,0.00046849,120]
[354714564,1740640240857,-500.0,0.00046849,120]
[354714566,1740640240866,-500.0,0.00046849,120]
[354714567,1740640240875,-500.0,0.00046849,120]
[354714568,1740640240885,-500.0,0.00046849,120]
[354714569,1740640240896,-500.0,0.00046849,120]
[354714570,1740640240905,-500.0,0.00046849,120]
[354714571,1740640240915,-500.0,0.00046849,120]
[354714572,1740640240925,-500.0,0.00046849,120]
[354714573,1740640240935,-500.0,0.00046849,120]
[354714574,1740640240947,-500.0,0.00046849,120]
[354714575,1740640240958,-718.85,0.00046849,120]
[354714576,1740640240967,-500.0,0.00046849,120]
[354714577,1740640240976,-500.0,0.00046849,120]
[354714578,1740640240986,-500.0,0.00046849,120]
[354714579,1740640240995,-500.0,0.00046849,120]
[354714580,1740640241004,-500.0,0.00046849,120]
[354714581,1740640241014,-500.0,0.00046849,120]
[354714582,1740640241023,-500.0,0.00046849,120]
[354714583,1740640241032,-500.0,0.00046849,120]
[354714584,1740640241042,-500.0,0.00046849,120]
[354714585,1740640241051,-500.0,0.00046849,120]
[354714586,1740640241060,-500.0,0.00046849,120]
[354714587,1740640241070,-500.0,0.00046849,120]
[354714588,1740640241079,-500.0,0.00046849,120]
[354714589,1740640241088,-500.0,0.00046849,120]
[354714590,1740640241097,-1255.94,0.00046849,120]
[354714591,1740640241107,-686.21,0.00046849,120]
[354714592,1740640241117,-500.0,0.00046849,120]
[354714593,1740640241129,-1362.22,0.00046849,120]
[354714594,1740640241139,-696.39,0.00046849,120]
[354714595,1740640241149,-500.0,0.00046849,120]
[354714596,1740640241158,-500.0,0.00046849,120]
[354714597,1740640241167,-2448.2,0.00046849,120]
[354714598,1740640241177,-8878.25,0.00046849,120]
[354714599,1740640241187,-4110.26,0.00046849,120]
[354714600,1740640241197,-500.0,0.00046849,120]
[354714601,1740640241207,-500.0,0.00046849,120]
[354714602,1740640241218,-500.0,0.00046849,120]
[354714603,1740640241227,-500.0,0.00046849,120]
[354714604,1740640241237,-628.54,0.00046849,120]
[354714605,1740640241247,-41161.85,0.00046849,7]
[354714606,1740640241257,-1307.96,0.00046849,120]
[354714607,1740640241266,-500.0,0.00046849,120]
[354714608,1740640241276,-839.87,0.00046849,120]
[354714609,1740640241285,-445.43670164,0.00046849,120]
[354714610,1740640241294,-759.81,0.00046849,120]
[354714611,1740640241304,-500.0,0.00046849,30]
[354714612,1740640241313,-1886.25,0.00046849,120]
[354714613,1740640241323,-500.0,0.00046849,120]
[354714614,1740640241332,-500.0,0.00046849,120]
[354714615,1740640241341,-500.0,0.00046849,120]
[354714616,1740640241351,-1063.4,0.00046849,120]
[354714617,1740640241360,-500.0,0.00046849,120]
[354714618,1740640241369,-500.0,0.00046849,120]
[354714619,1740640241380,-500.0,0.00046849,120]
[354714620,1740640241390,-762.5,0.00046849,120]
[354714621,1740640241400,-500.0,0.00046849,120]
[354714622,1740640241409,-500.0,0.00046849,120]
[354714623,1740640241419,-500.0,0.00046849,120]
[354714624,1740640241428,-1804.4,0.00046849,120]
[354714625,1740640241438,-500.0,0.00046849,120]
[354714626,1740640241447,-578.87,0.00046849,120]
[354714627,1740640241456,-500.0,0.00046849,120]
[354714628,1740640241466,-500.0,0.00046849,120]
[354714629,1740640241475,-571.07,0.00046849,120]
[354714630,1740640241485,-500.0,0.00046849,120]
[354714631,1740640241494,-947.7,0.00046849,120]
[354714632,1740640241502,-500.0,0.00046849,120]
[354714633,1740640241511,-500.0,0.00046849,120]
[354714634,1740640241520,-500.0,0.00046849,120]
[354714635,1740640241529,-500.0,0.00046849,120]
[354714636,1740640241538,-500.0,0.00046849,120]
[354714637,1740640241547,-500.0,0.00046849,120]
[354714638,1740640241557,-500.0,0.00046849,120]
[354714639,1740640241566,-194.10134746,0.00046849,120]
[354714640,1740640241575,-500.0,0.00046849,120]
[354714641,1740640241584,-500.0,0.00046849,120]
[354714642,1740640241594,-500.0,0.00046849,120]
[354714643,1740640241603,-500.0,0.00046849,120]
[354714644,1740640241613,-948.53,0.00046849,120]
[354714645,1740640241622,-500.0,0.00046849,120]
[354714646,1740640241632,-500.0,0.00046849,120]
[354714647,1740640241642,-1010.67,0.00046849,120]
[354714648,1740640241654,-1119.72,0.00046849,120]
[354714649,1740640241664,-7615.9,0.00046849,6]
[354714650,1740640241674,-500.0,0.00046849,120]
[354714651,1740640241684,-2671.21,0.00046849,120]
[354714652,1740640241694,-543.62,0.00046849,120]
[354714653,1740640241705,-522.81,0.00046849,120]
[354714654,1740640241715,-850.38,0.00046849,120]
[354714655,1740640241724,-724.63,0.00046849,120]
[354714656,1740640241734,-500.0,0.00046849,120]
[354714657,1740640241743,-500.0,0.00046849,120]
[354714658,1740640241752,-500.0,0.00046849,120]
[354714659,1740640241762,-1131.59,0.00046849,120]
[354714660,1740640241771,-1032.9,0.00046849,120]
[354714661,1740640241782,-531.24,0.00046849,120]
[354714662,1740640241792,-500.0,0.00046849,120]
[354714663,1740640241803,-597.09,0.00046849,120]
[354714664,1740640241815,-500.0,0.00046849,120]
[354714665,1740640241825,-500.0,0.00046849,120]
[354714666,1740640241834,-10926.74,0.00046849,120]
[354714667,1740640241845,-500.0,0.00046849,120]
[354714668,1740640241856,-3093.71,0.00046849,120]
[354714669,1740640241867,-1968.62,0.00046849,120]
[354714670,1740640241876,-1141.19,0.00046849,120]
[354714671,1740640241886,-500.0,0.00046849,2]
[354714672,1740640241898,-4647.82,0.00046849,120]
[354714673,1740640241907,-500.0,0.00046849,120]
[354714674,1740640241916,-388.39632041,0.00046849,120]
[354714675,1740640241925,-3257.35,0.00046849,120]
[354714676,1740640241934,-500.0,0.00046849,120]
[354714677,1740640241945,-500.0,0.00046849,120]
[354714678,1740640241956,-500.0,0.00046849,120]
[354714679,1740640241966,-500.0,0.00046873,10]
[354714680,1740640241975,-108553.3,0.000469,30]
[354714681,1740640241984,-500.0,0.00047123,120]
[354714682,1740640241993,-500.0,0.00047123,120]
[354714683,1740640242003,-500.0,0.00047123,120]
[354714684,1740640242012,-500.0,0.00047123,120]
[354714685,1740640242021,-820.63,0.00047123,120]
[354714686,1740640242030,-388.36771241,0.00047123,120]
[354714687,1740640242041,-500.0,0.00047123,120]
[354714688,1740640242055,-500.0,0.00047123,120]
[354714689,1740640242064,-605.08,0.00047123,120]
[354714690,1740640242073,-500.0,0.00047123,120]
[354714691,1740640242083,-611.0,0.00047123,120]
[354714692,1740640242092,-500.0,0.00047123,120]
[354714693,1740640242101,-500.0,0.00047123,120]
[354714694,1740640242111,-500.0,0.00047123,120]
[354714695,1740640242120,-616.63,0.00047123,120]
[354714696,1740640242129,-533.30258336,0.00047123,120]
[354714697,1740640242139,-500.0,0.00047123,120]
[354714698,1740640242148,-500.0,0.00047123,120]
[354714699,1740640242158,-628.79,0.00047123,120]
[354714700,1740640242167,-540.17,0.00047123,120]
[354714701,1740640242176,-500.0,0.00047123,120]
[354714702,1740640242186,-500.0,0.00047123,120]
[354714703,1740640242195,-500.0,0.00047123,120]
[354714704,1740640242204,-500.0,0.00047123,120]
[354714705,1740640242214,-500.0,0.00047123,120]
[354714706,1740640242223,-500.0,0.00047123,120]
[354714707,1740640242233,-540.99,0.00047123,120]
[354714708,1740640242242,-500.0,0.00047123,120]
[354714709,1740640242252,-586.79,0.00047123,3]
[354714710,1740640242262,-500.0,0.00047123,120]
[354714711,1740640242271,-500.0,0.00047123,120]
[354714712,1740640242280,-626.89,0.00047123,120]
[354714713,1740640242290,-770.28,0.00047123,120]
[354714714,1740640242299,-500.0,0.00047123,120]
[354714715,1740640242308,-500.0,0.00047123,120]
[354714716,1740640242317,-500.0,0.00047123,120]
[354714717,1740640242327,-500.0,0.00047123,120]
[354714718,1740640242337,-500.0,0.00047123,120]
[354714719,1740640242346,-500.0,0.00047123,120]
[354714720,1740640242356,-405.94770101,0.00047123,120]
[354714721,1740640242366,-500.0,0.00047123,120]
[354714722,1740640242376,-500.0,0.00047123,120]
[354714723,1740640242386,-500.0,0.00047123,120]
[354714724,1740640242395,-718.85,0.00047123,120]
[354714725,1740640242405,-500.0,0.00047123,120]
[354714726,1740640242414,-500.0,0.00047123,120]
[354714727,1740640242425,-495.46747193,0.00047123,120]
[354714728,1740640242435,-500.0,0.00047123,120]
[354714729,1740640242445,-500.0,0.00047123,120]
[354714730,1740640242454,-500.0,0.00047123,120]
[354714731,1740640242463,-500.0,0.00047123,120]
[354714732,1740640242473,-500.0,0.00047123,120]
[354714733,1740640242483,-500.0,0.00047123,120]
[354714734,1740640242492,-500.0,0.00047123,120]
[354714735,1740640242502,-500.0,0.00047123,120]
[354714736,1740640242511,-500.0,0.00047123,120]
[354714737,1740640242521,-500.0,0.00047123,120]
[354714738,1740640242530,-1255.94,0.00047123,120]
[354714739,1740640242540,-686.21,0.00047123,120]
[354714740,1740640242549,-500.0,0.00047123,120]
[354714741,1740640242559,-1362.22,0.00047123,120]
[354714742,1740640242568,-696.39,0.00047123,120]
[354714743,1740640242577,-500.0,0.00047123,120]
[354714744,1740640242587,-500.0,0.00047123,120]
[354714745,1740640242596,-2448.2,0.00047123,120]
[354714746,1740640242605,-8878.25,0.00047123,120]
[354714747,1740640242615,-4110.26,0.00047123,120]
[354714748,1740640242624,-500.0,0.00047123,120]
[354714749,1740640242634,-500.0,0.00047123,120]
[354714750,1740640242643,-500.0,0.00047123,120]
[354714751,1740640242654,-500.0,0.00047123,120]
[354714752,1740640242663,-628.54,0.00047123,120]
[354714753,1740640242673,-41161.85,0.00047123,7]
[354714754,1740640242682,-1307.96,0.00047123,120]
[354714755,1740640242692,-500.0,0.00047123,120]
[354714756,1740640242702,-839.87,0.00047123,120]
[354714757,1740640242711,-759.81,0.00047123,120]
[354714758,1740640242721,-500.0,0.00047123,30]
[354714759,1740640242730,-1886.25,0.00047123,120]
[354714760,1740640242740,-500.0,0.00047123,120]
[354714761,1740640242908,-500.0,0.00047123,120]
[354714762,1740640242919,-500.0,0.00047123,120]
[354714763,1740640242928,-1063.4,0.00047123,120]
[354714764,1740640242938,-500.0,0.00047123,120]
[354714765,1740640242947,-500.0,0.00047123,120]
[354714766,1740640242957,-500.0,0.00047123,120]
[354714767,1740640242966,-762.5,0.00047123,120]
[354714768,1740640242975,-500.0,0.00047123,120]
[354714769,1740640242984,-500.0,0.00047123,120]
[354714770,1740640242993,-500.0,0.00047123,120]
[354714771,1740640243002,-1804.4,0.00047123,120]
[354714772,1740640243012,-500.0,0.00047123,120]
[354714773,1740640243021,-578.87,0.00047123,120]
[354714774,1740640243031,-500.0,0.00047123,120]
[354714775,1740640243040,-500.0,0.00047123,120]
[354714776,1740640243050,-571.07,0.00047123,120]
[354714777,1740640243059,-500.0,0.00047123,120]
[354714778,1740640243068,-947.7,0.00047123,120]
[354714779,1740640243078,-500.0,0.00047123,120]
[354714780,1740640243087,-500.0,0.00047123,120]
[354714781,1740640243097,-500.0,0.00047123,120]
[354714782,1740640243107,-500.0,0.00047123,120]
[354714783,1740640243116,-500.0,0.00047123,120]
[354714785,1740640243125,-500.0,0.00047123,120]
[354714787,1740640243135,-500.0,0.00047123,120]
[354714789,1740640243144,-500.0,0.00047123,120]
[354714791,1740640243154,-500.0,0.00047123,120]
[354714793,1740640243163,-500.0,0.00047123,120]
[354714795,1740640243173,-500.0,0.00047123,120]
[354714797,1740640243183,-948.53,0.00047123,120]
[354714799,1740640243192,-500.0,0.00047123,120]
[354714800,1740640243201,-500.0,0.00047123,120]
[354714801,1740640243211,-1010.67,0.00047123,120]
[354714802,1740640243220,-1119.72,0.00047123,120]
[354714803,1740640243229,-7615.9,0.00047123,6]
[354714804,1740640243238,-500.0,0.00047123,120]
[354714805,1740640243248,-543.62,0.00047123,120]
[354714806,1740640243258,-2671.21,0.00047123,120]
[354714807,1740640243267,-522.81,0.00047123,120]
[354714808,1740640243276,-850.38,0.00047123,120]
[354714809,1740640243286,-724.63,0.00047123,120]
[354714810,1740640243295,-500.0,0.00047123,120]
[354714811,1740640243304,-500.0,0.00047123,120]
[354714812,1740640243314,-500.0,0.00047123,120]
[354714813,1740640243323,-1131.59,0.00047123,120]
[354714814,1740640243332,-1032.9,0.00047123,120]
[354714815,1740640243342,-531.24,0.00047123,120]
[354714816,1740640243351,-500.0,0.00047123,120]
[354714817,1740640243361,-597.09,0.00047123,120]
[354714818,1740640243370,-500.0,0.00047123,120]
[354714819,1740640243380,-500.0,0.00047123,120]
[354714820,1740640243389,-10926.74,0.00047123,120]
[354714821,1740640243399,-500.0,0.00047123,120]